fUST/lending_fUST_20250209
["ID","MTS","AMOUNT","RATE_DAILY","PERIOD"]
[352339100,1739046643380,-681.35,0.00011369,2]
[352339101,1739046643390,-649.8897557,0.00011369,2]
[352339103,1739046643400,-500.0,0.00011369,2]
[352339104,1739046643409,-500.0,0.00011369,2]
[352339105,1739046643419,-500.0,0.00011369,2]
[352339106,1739046643428,-500.0,0.00011369,2]
[352339107,1739046643438,-500.0,0.00011369,2]
[352339108,1739046643448,-500.0,0.00011369,2]
[352339109,1739046643458,-338.75832834,0.00011369,2]
[352339110,1739046643467,-729.49,0.00011369,2]
[352339111,1739046643477,-500.0,0.00011369,2]
[352339112,1739046643487,-519.77,0.00011369,2]
[352339113,1739046643496,-500.0,0.00011369,2]
[352339114,1739046643506,-500.0,0.00011369,2]
[352339115,1739046643517,-1310.85,0.00011369,2]
[352339116,1739046643526,-500.0,0.00011369,2]
[352339117,1739046643536,-500.0,0.00011369,2]
[352339118,1739046643548,-781.33,0.00011369,2]
[352339119,1739046643557,-1005.48,0.00011369,2]
[352339120,1739046643567,-826.6,0.00011369,2]
[352339121,1739046643577,-2336.07,0.00011369,2]
[352339122,1739046643586,-500.0,0.00011369,2]
[352339123,1739046643595,-548.96,0.00011369,2]
[352339124,1739046643605,-500.0,0.00011369,2]
[352339125,1739046643615,-1012.29,0.00011369,2]
[352339126,1739046643625,-9403.59,0.00011369,2]
[352339127,1739046643635,-500.0,0.00011369,2]
[352339128,1739046643644,-909.51,0.00011369,2]
[352339129,1739046643654,-500.0,0.00011369,2]
[352339130,1739046643663,-2851.67,0.00011369,2]
[352339131,1739046643673,-500.0,0.00011369,2]
[352339132,1739046643683,-632.02,0.00011369,2]
[352339133,1739046643693,-991.24,0.00011369,2]
[352339134,1739046643702,-833.82,0.00011369,2]
[352339135,1739046643712,-500.0,0.00011369,2]
[352339136,1739046643721,-500.0,0.00011369,2]
[352339137,1739046643731,-1091.23,0.00011369,2]
[352339138,1739046643740,-500.0,0.00011369,2]
[352339139,1739046643750,-500.0,0.00011369,2]
[352339140,1739046643759,-550.25,0.00011369,2]
[352339141,1739046643768,-500.0,0.00011369,2]
[352339142,1739046643778,-500.0,0.00011369,2]
[352339143,1739046643787,-500.0,0.00011369,2]
[352339144,1739046643796,-500.0,0.00011369,2]
[352339145,1739046643806,-2130.48,0.00011369,2]
[352339146,1739046643815,-500.0,0.00011369,2]
[352339147,1739046643825,-500.0,0.00011369,2]
[352339148,1739046643834,-500.0,0.00011369,2]
[352339149,1739046643844,-982.5,0.00011369,2]
[352339150,1739046643853,-641.66,0.00011369,2]
[352339151,1739046643863,-500.0,0.00011369,2]
[352339152,1739046643872,-1943.58,0.00011369,2]
[352339153,1739046643881,-500.0,0.00011369,2]
[352339154,1739046643890,-500.0,0.00011369,2]
[352339155,1739046643900,-500.0,0.00011369,2]
[352339156,1739046643909,-4950.39,0.00011369,2]
[352339157,1739046643918,-1789.83,0.00011369,2]
[352339158,1739046643928,-933.44,0.00011369,2]
[352339159,1739046643937,-500.0,0.00011369,2]
[352339160,1739046643947,-9126.83,0.00011369,2]
[352339161,1739046643956,-500.0,0.00011369,2]
[352339162,1739046643965,-1963.88,0.00011369,2]
[352339163,1739046643974,-500.0,0.00011369,2]
[352339164,1739046643983,-913.17,0.00011369,2]
[352339165,1739046643992,-500.0,0.00011369,2]
[352339166,1739046644002,-500.0,0.00011369,2]
[352339167,1739046644011,-2042.98,0.00011369,2]
[352339168,1739046644020,-617.84,0.00011369,2]
[352339169,1739046644029,-660.31,0.00011369,2]
[352339170,1739046644039,-500.0,0.00011369,2]
[352339171,1739046644048,-1725.21,0.00011369,2]
[352339172,1739046644057,-500.0,0.00011369,2]
[352339173,1739046644066,-500.0,0.00011369,2]
[352339174,1739046644075,-246.04762436,0.00011369,2]
[352339175,1739046644084,-500.0,0.00011369,2]
[352339176,1739046644093,-3428.86,0.00011369,2]
[352339177,1739046644102,-500.0,0.00011369,2]
[352339178,1739046644113,-500.0,0.00011369,2]
[352339179,1739046644122,-608.88,0.00011369,2]
[352339180,1739046644131,-500.0,0.00011369,2]
[352339181,1739046644140,-532.84,0.00011369,2]
[352339182,1739046644149,-354.7727591,0.000114,2]
[352339183,1739046644158,-215.7975175,0.00011425,2]
[352339184,1739046644168,-215.7975175,0.00011425,2]
[352339185,1739046644178,-215.7975175,0.00011425,2]
[352339186,1739046644188,-215.7975175,0.00011425,2]
[352339187,1739046644197,-153.0,0.00011452,2]
[352339188,1739046644206,-153.0,0.00011452,2]
[352339189,1739046644216,-355.581302,0.00011452,2]
[352339190,1739046644226,-151.0,0.000115,2]
[352339191,1739046644235,-153.0,0.000115,2]
[352339192,1739046644244,-306.0,0.000115,2]
[352339193,1739046644253,-153.0,0.000115,2]
[352339194,1739046644263,-307.3775714,0.000115,2]
[352339195,1739046644272,-153.0,0.000115,2]
[352339196,1739046644282,-153.4425861,0.000115,2]
[352339197,1739046644291,-153.0,0.000115,2]
[352339198,1739046644301,-309.1472928,0.000115,2]
[352339199,1739046644310,-153.0,0.000115,2]
[352339200,1739046644319,-500.0,0.00011505,2]
[352339201,1739046644328,-586.26103756,0.00011505,2]
[352339202,1739046644339,-151.0,0.00011506,2]
[352339203,1739046644348,-151.0,0.00011506,2]
[352339204,1739046644357,-500.0,0.00011506,2]
[352339205,1739046644367,-892.92,0.00011506,2]
[352339206,1739046644377,-904.88,0.00011506,2]
[352339207,1739046644387,-500.0,0.00011506,2]
[352339208,1739046644396,-594.56,0.00011506,2]
[352339209,1739046644406,-819.57,0.00011506,2]
[352339210,1739046644416,-500.0,0.00011506,2]
[352339211,1739046644425,-500.0,0.00011506,2]
[352339212,1739046644434,-500.0,0.00011506,2]
[352339213,1739046644444,-693.57,0.00011506,2]
[352339214,1739046644454,-500.0,0.00011506,2]
[352339215,1739046644463,-500.0,0.00011506,2]
[352339216,1739046644473,-500.0,0.00011506,2]
[352339217,1739046644482,-500.0,0.00011506,2]
[352339218,1739046644491,-500.0,0.00011506,2]
[352339219,1739046644501,-500.0,0.00011506,2]
[352339220,1739046644511,-681.35,0.00011506,2]
[352339221,1739046644521,-500.0,0.00011506,2]
[352339222,1739046644531,-500.0,0.00011506,2]
[352339223,1739046644543,-500.0,0.00011506,2]
[352339224,1739046644553,-500.0,0.00011506,2]
[352339225,1739046644562,-500.0,0.00011506,2]
[352339226,1739046644572,-500.0,0.00011506,2]
[352339227,1739046644582,-729.49,0.00011506,2]
[352339228,1739046644593,-500.0,0.00011506,2]
[352339229,1739046644602,-519.77,0.00011506,2]
[352339230,1739046644611,-500.0,0.00011506,2]
[352339231,1739046644624,-1310.85,0.00011506,2]
[352339232,1739046644633,-500.0,0.00011506,2]
[352339233,1739046644643,-500.0,0.00011506,2]
[352339234,1739046644652,-781.33,0.00011506,2]
[352339235,1739046644661,-1005.48,0.00011506,2]
[352339236,1739046644671,-826.6,0.00011506,2]
[352339237,1739046644680,-2336.07,0.00011506,2]
[352339238,1739046644689,-500.0,0.00011506,2]
[352339239,1739046644698,-548.96,0.00011506,2]
[352339240,1739046644707,-500.0,0.00011506,2]
[352339241,1739046644716,-1012.29,0.00011506,2]
[352339242,1739046644726,-9403.59,0.00011506,2]
[352339243,1739046644735,-500.0,0.00011506,2]
[352339244,1739046644745,-909.51,0.00011506,2]
[352339245,1739046644754,-500.0,0.00011506,2]
[352339246,1739046644764,-2851.67,0.00011506,2]
[352339247,1739046644773,-500.0,0.00011506,2]
[352339248,1739046644783,-632.02,0.00011506,2]
[352339249,1739046644792,-991.24,0.00011506,2]
[352339250,1739046644802,-833.82,0.00011506,2]
[352339251,1739046644811,-500.0,0.00011506,2]
[352339252,1739046644820,-1091.23,0.00011506,2]
[352339253,1739046644829,-500.0,0.00011506,2]
[352339254,1739046644839,-500.0,0.00011506,2]
[352339255,1739046644848,-500.0,0.00011506,2]
[352339256,1739046644858,-500.0,0.00011506,2]
[352339257,1739046644867,-500.0,0.00011506,2]
[352339258,1739046644876,-500.0,0.00011506,2]
[352339259,1739046644886,-2130.48,0.00011506,2]
[352339260,1739046644895,-500.0,0.00011506,2]
[352339261,1739046644904,-500.0,0.00011506,2]
[352339262,1739046644914,-500.0,0.00011506,2]
[352339263,1739046644924,-982.5,0.00011506,2]
[352339264,1739046644933,-641.66,0.00011506,2]
[352339265,1739046644943,-500.0,0.00011506,2]
[352339266,1739046644953,-1943.58,0.00011506,2]
[352339267,1739046644962,-500.0,0.00011506,2]
[352339268,1739046644971,-4950.39,0.00011506,2]
[352339269,1739046644980,-1789.83,0.00011506,2]
[352339270,1739046644990,-933.44,0.00011506,2]
[352339271,1739046644999,-500.0,0.00011506,2]
[352339272,1739046645008,-9126.83,0.00011506,2]
[352339273,1739046645017,-500.0,0.00011506,2]
[352339274,1739046645026,-1963.88,0.00011506,2]
[352339275,1739046645036,-500.0,0.00011506,2]
[352339276,1739046645045,-913.17,0.00011506,2]
[352339277,1739046645054,-500.0,0.00011506,2]
[352339278,1739046645063,-500.0,0.00011506,2]
[352339279,1739046645072,-2042.98,0.00011506,2]
[352339280,1739046645082,-617.84,0.00011506,2]
[352339281,1739046645092,-660.31,0.00011506,2]
[352339282,1739046645102,-500.0,0.00011506,2]
[352339283,1739046645112,-1725.21,0.00011506,2]
[352339284,1739046645122,-500.0,0.00011506,2]
[352339285,1739046645132,-500.0,0.00011506,2]
[352339286,1739046645141,-500.0,0.00011506,2]
[352339287,1739046645150,-3428.86,0.00011506,2]
[352339288,1739046645160,-500.0,0.00011506,2]
[352339289,1739046645169,-500.0,0.00011506,2]
[352339290,1739046645178,-608.88,0.00011506,2]
[352339291,1739046645187,-532.84,0.00011506,2]
[352339292,1739046645197,-1000.0,0.00011521,2]
[352339293,1739046645207,-500.0,0.00011543,2]
[352339294,1739046645216,-500.0,0.00011543,2]
[352339295,1739046645226,-215.7975175,0.000116,2]
[352339296,1739046645235,-153.0,0.000116,2]
[352339297,1739046645245,-215.7975175,0.000116,2]
[352339298,1739046645255,-151.0,0.000116,2]
[352339299,1739046645265,-153.0,0.000116,2]
[352339300,1739046645274,-215.7975175,0.000116,2]
[352339301,1739046645284,-151.715586,0.00011643,2]
[352339302,1739046645293,-500.0,0.00011643,2]
[352339303,1739046645303,-892.92,0.00011643,2]
[352339304,1739046645312,-904.88,0.00011643,2]
[352339305,1739046645321,-594.56,0.00011643,2]
[352339306,1739046645331,-819.57,0.00011643,2]
[352339307,1739046645340,-500.0,0.00011643,2]
[352339308,1739046645349,-500.0,0.00011643,2]
[352339309,1739046645359,-500.0,0.00011643,2]
[352339310,1739046645370,-693.57,0.00011643,2]
[352339311,1739046645380,-500.0,0.00011643,2]
[352339312,1739046645389,-500.0,0.00011643,2]
[352339313,1739046645398,-500.0,0.00011643,2]
[352339314,1739046645407,-500.0,0.00011643,2]
[352339315,1739046645417,-500.0,0.00011643,2]
[352339316,1739046645426,-500.0,0.00011643,2]
[352339317,1739046645436,-681.35,0.00011643,2]
[352339318,1739046645445,-500.0,0.00011643,2]
[352339319,1739046645455,-500.0,0.00011643,2]
[352339320,1739046645466,-500.0,0.00011643,2]
[352339321,1739046645475,-500.0,0.00011643,2]
[352339322,1739046645485,-500.0,0.00011643,2]
[352339323,1739046645494,-500.0,0.00011643,2]
[352339324,1739046645503,-729.49,0.00011643,2]
[352339325,1739046645513,-500.0,0.00011643,2]
[352339326,1739046645522,-519.77,0.00011643,2]
[352339327,1739046645531,-1310.85,0.00011643,2]
[352339328,1739046645543,-500.0,0.00011643,2]
[352339329,1739046645553,-500.0,0.00011643,2]
[352339330,1739046645563,-781.33,0.00011643,2]
[352339331,1739046645573,-1005.48,0.00011643,2]
[352339332,1739046645583,-826.6,0.00011643,2]
[352339333,1739046645592,-2336.07,0.00011643,2]
[352339334,1739046645602,-500.0,0.00011643,2]
[352339335,1739046645612,-548.96,0.00011643,2]
[352339336,1739046645621,-151.0,0.00011643,2]
[352339337,1739046645633,-1012.29,0.00011643,2]
[352339338,1739046645642,-500.0,0.00011643,2]
[352339339,1739046645651,-9403.59,0.00011643,2]
[352339340,1739046645662,-151.0,0.00011643,2]
[352339341,1739046645672,-500.0,0.00011643,2]
[352339342,1739046645682,-909.51,0.00011643,2]
[352339343,1739046645691,-500.0,0.00011643,2]
[352339344,1739046645701,-2851.67,0.00011643,2]
[352339345,1739046645710,-446.86467182,0.00011643,2]
[352339346,1739046645721,-632.02,0.00011643,2]
[352339347,1739046645731,-991.24,0.00011643,2]
[352339348,1739046645741,-833.82,0.00011643,2]
[352339349,1739046645751,-500.0,0.00011643,2]
[352339350,1739046645760,-1091.23,0.00011643,2]
[352339351,1739046645769,-500.0,0.00011643,2]
[352339353,1739046645779,-500.0,0.00011643,2]
[352339355,1739046645788,-500.0,0.00011643,2]
[352339356,1739046645798,-869.13043145,0.00011643,2]
[352339359,1739046645962,-1261.34956855,0.00011643,2]
[352339360,1739046645971,-500.0,0.00011643,2]
[352339361,1739046645982,-500.0,0.00011643,2]
[352339362,1739046645991,-500.0,0.00011643,2]
[352339363,1739046646000,-982.5,0.00011643,2]
[352339365,1739046646010,-641.66,0.00011643,2]
[352339367,1739046646019,-500.0,0.00011643,2]
[352339369,1739046646028,-1943.58,0.00011643,2]
[352339371,1739046646038,-151.0,0.00011643,2]
[352339373,1739046646047,-500.0,0.00011643,2]
[352339375,1739046646056,-151.0,0.00011643,2]
[352339377,1739046646065,-4950.39,0.00011643,2]
[352339378,1739046646075,-1789.83,0.00011643,2]
[352339379,1739046646084,-933.44,0.00011643,2]
[352339380,1739046646093,-1297.291632,0.00011643,2]
[352339381,1739046646103,-151.0,0.00011643,2]
[352339382,1739046646112,-1297.291632,0.00011643,2]
[352339383,1739046646121,-500.0,0.00011643,2]
[352339384,1739046646130,-151.0,0.00011643,2]
[352339385,1739046646140,-9126.83,0.00011643,2]
[352339386,1739046646150,-500.0,0.00011643,2]
[352339387,1739046646160,-1963.88,0.00011643,2]
[352339388,1739046646169,-500.0,0.00011643,2]
[352339389,1739046646179,-913.17,0.00011643,2]
[352339390,1739046646188,-500.0,0.00011643,2]
[352339391,1739046646197,-500.0,0.00011643,2]
[352339392,1739046646207,-2042.98,0.00011643,2]
[352339393,1739046646217,-617.84,0.00011643,2]
[352339394,1739046646226,-660.31,0.00011643,2]
[352339395,1739046646236,-500.0,0.00011643,2]
[352339397,1739046646245,-1725.21,0.00011643,2]
[352339398,1739046646255,-500.0,0.00011643,2]
[352339400,1739046646264,-500.0,0.00011643,2]
[352339401,1739046646274,-500.0,0.00011643,2]
[352339402,1739046646283,-3428.86,0.00011643,2]
[352339403,1739046646292,-181.59370592,0.00011643,2]
[352339404,1739046646443,-608.88,0.00011643,2]
[352339405,1739046646453,-151.0,0.00011643,2]
[352339406,1739046646463,-334.982507,0.00011643,2]
[352339407,1739046646473,-532.84,0.00011643,2]
[352339408,1739046646482,-334.982507,0.00011643,2]
[352339409,1739046646492,-13265.39216455,0.00011663,2]
[352339410,1739046646502,-151.0,0.000117,2]
[352339411,1739046646511,-500.0,0.0001178,2]
[352339412,1739046646521,-892.92,0.0001178,2]
[352339413,1739046646530,-904.88,0.0001178,2]
[352339414,1739046646540,-594.56,0.0001178,2]
[352339415,1739046646556,-819.57,0.0001178,2]
[352339416,1739046646565,-500.0,0.0001178,2]
[352339417,1739046646575,-500.0,0.0001178,2]
[352339418,1739046646584,-693.57,0.0001178,2]
[352339419,1739046646594,-500.0,0.0001178,2]
[352339420,1739046646603,-291.617064,0.0001178,2]
[352339421,1739046646613,-500.0,0.0001178,2]
[352339422,1739046646624,-291.617064,0.0001178,2]
[352339423,1739046646634,-272.156516,0.0001178,2]
[352339424,1739046646643,-272.156516,0.0001178,2]
[352339425,1739046646652,-500.0,0.0001178,2]
[352339426,1739046646662,-151.0,0.0001178,2]
[352339427,1739046646672,-500.0,0.0001178,2]
[352339428,1739046646681,-500.0,0.0001178,2]
[352339429,1739046646691,-681.35,0.0001178,2]
[352339430,1739046646700,-475.876395,0.0001178,2]
[352339431,1739046646710,-500.0,0.0001178,2]
[352339432,1739046646719,-475.876395,0.0001178,2]
[352339433,1739046646728,-500.0,0.0001178,2]
[352339434,1739046646738,-500.0,0.0001178,2]
[352339435,1739046646748,-500.0,0.0001178,2]
[352339436,1739046646757,-722.695272,0.0001178,2]
[352339437,1739046646766,-500.0,0.0001178,2]
[352339438,1739046646775,-722.695272,0.0001178,2]
[352339439,1739046646785,-500.0,0.0001178,2]
[352339440,1739046646796,-304.522747,0.0001178,2]
[352339441,1739046646805,-304.522747,0.0001178,2]
[352339442,1739046646815,-151.0,0.0001178,2]
[352339443,1739046646825,-729.49,0.0001178,2]
[352339444,1739046646835,-151.0,0.0001178,2]
[352339445,1739046646844,-500.0,0.0001178,2]
[352339446,1739046646854,-519.77,0.0001178,2]
[352339447,1739046646864,-1310.85,0.0001178,2]
[352339448,1739046646875,-491.57,0.0001178,2]
[352339449,1739046646885,-500.0,0.0001178,2]
[352339450,1739046646895,-781.33,0.0001178,2]
[352339451,1739046646905,-1005.48,0.0001178,2]
[352339452,1739046646915,-826.6,0.0001178,2]
[352339453,1739046646926,-2336.07,0.0001178,2]
[352339454,1739046646936,-151.0,0.0001178,2]
[352339455,1739046646946,-548.96,0.0001178,2]
[352339456,1739046646956,-1012.29,0.0001178,2]
[352339457,1739046646967,-500.0,0.0001178,2]
[352339458,1739046646978,-9403.59,0.0001178,2]
[352339459,1739046646988,-500.0,0.0001178,2]
[352339460,1739046646997,-909.51,0.0001178,2]
[352339461,1739046647007,-500.0,0.0001178,2]
[352339462,1739046647017,-2851.67,0.0001178,2]
[352339463,1739046647028,-632.02,0.0001178,2]
[352339464,1739046647038,-991.24,0.0001178,2]
[352339465,1739046647048,-181.119119,0.0001178,2]
[352339466,1739046647058,-833.82,0.0001178,2]
[352339467,1739046647069,-181.119119,0.0001178,2]
[352339468,1739046647079,-1091.23,0.0001178,2]
[352339469,1739046647089,-2130.48,0.0001178,2]
[352339470,1739046647098,-500.0,0.0001178,2]
[352339471,1739046647107,-500.0,0.0001178,2]
[352339472,1739046647121,-500.0,0.0001178,2]
[352339473,1739046647131,-982.5,0.0001178,2]
[352339474,1739046647141,-641.66,0.0001178,2]
[352339475,1739046647150,-1943.58,0.0001178,2]
[352339476,1739046647159,-500.0,0.0001178,2]
[352339477,1739046647169,-4950.39,0.0001178,2]
[352339478,1739046647178,-1789.83,0.0001178,2]
[352339479,1739046647187,-933.44,0.0001178,2]
[352339480,1739046647197,-500.0,0.0001178,2]
[352339481,1739046647206,-613.67277828,0.0001178,2]
[352339482,1739046647726,-33.3420428,0.00010958,2]
[352339483,1739046647738,-3220.47775371,0.00010958,2]
[352339484,1739046647750,-715.3970846,0.00010958,2]
[352339485,1739046648097,-127.23467266,0.00010958,2]
[352339486,1739046648114,-16617.07675082,0.00010958,2]
[352339487,1739046648407,-3020.29169541,0.00010958,2]
[352339488,1739046648418,-479.70830459,0.00011095,2]
[352339489,1739046648486,-20.29169541,0.00011095,2]
[352339490,1739046648496,-30.08136196,0.00011095,2]
[352339491,1739046648547,-163.23269904,0.00011095,2]
[352339514,1739047753167,-6039.348,0.00010095,2]
[352339543,1739047832345,-152.917102,0.00010095,2]
[352339545,1739047832355,-400.0,0.00010685,2]
[352339547,1739047832364,-337.52140988,0.00010718,2]
[352339549,1739047832379,-300.0,0.00010957,2]
[352339551,1739047832388,-342.86148812,0.00010958,2]
[352339553,1739047832401,-157.13851188,0.00010958,2]
[352339555,1739047832411,-500.0,0.00010958,2]
[352339556,1739047832420,-241.34148812,0.00010958,2]
[352339559,1739047832436,-258.65851188,0.00010958,2]
[352339561,1739047832446,-171.54648812,0.00010958,2]
[352339564,1739047832463,-328.45351188,0.00010958,2]
[352339565,1739047832473,-500.0,0.00010958,2]
[352339567,1739047832483,-251.90279516,0.00010958,2]
[352339569,1739047832492,-500.0,0.00010958,2]
[352339571,1739047832502,-400.06369296,0.00010958,2]
[352339999,1739047838191,-79.44855636,0.00010958,2]
[352340000,1739047838201,-504.13369875,0.00010958,2]
[352340001,1739047838211,-500.0,0.00010958,2]
[352340002,1739047838220,-500.0,0.00010958,2]
[352340003,1739047838230,-500.0,0.00010958,2]
[352340004,1739047838241,-388.92401548,0.00010958,2]
[352340005,1739047838250,-500.0,0.00010958,2]
[352340006,1739047838260,-500.0,0.00010958,2]
[352340007,1739047838269,-500.0,0.00010958,2]
[352340008,1739047838279,-309.07688405,0.00010958,2]
[352340009,1739047838288,-500.0,0.00010958,2]
[352340010,1739047838297,-500.0,0.00010958,2]
[352340011,1739047838307,-500.0,0.00010958,2]
[352340012,1739047838316,-500.0,0.00010958,2]
[352340013,1739047838325,-500.0,0.00010958,2]
[352340014,1739047838335,-500.0,0.00010958,2]
[352340015,1739047838344,-500.0,0.00010958,2]
[352340016,1739047838354,-500.0,0.00010958,2]
[352340017,1739047838364,-500.0,0.00010958,2]
[352340018,1739047838372,-500.0,0.00010958,2]
[352340019,1739047838382,-500.0,0.00010958,2]
[352340020,1739047838391,-213.62252062,0.00010958,2]
[352340021,1739047838401,-190.76350899,0.00010958,2]
[352340022,1739047838410,-500.0,0.00010958,2]
[352340023,1739047838419,-839.34,0.00010958,2]
[352340024,1739047838428,-500.0,0.00010958,2]
[352340025,1739047838438,-500.0,0.00010958,2]
[352340027,1739047838447,-500.0,0.00010958,2]
[352340029,1739047838457,-850.31,0.00010958,2]
[352340031,1739047838466,-531.47,0.00010958,2]
[352340033,1739047838476,-500.0,0.00010958,2]
[352340035,1739047838485,-500.0,0.00010958,2]
[352340037,1739047838494,-500.0,0.00010958,2]
[352340039,1739047838503,-500.0,0.00010958,2]
[352340041,1739047838513,-500.0,0.00010958,2]
[352340043,1739047838522,-503.54131032,0.00010958,2]
[352340045,1739047838531,-500.0,0.00010958,2]
[352340046,1739047838540,-500.0,0.00010958,2]
[352340047,1739047838550,-500.0,0.00010958,2]
[352340048,1739047838559,-586.68,0.00010958,2]
[352340050,1739047838568,-500.0,0.00010958,2]
[352340052,1739047838578,-500.0,0.00010958,2]
[352340054,1739047838587,-500.0,0.00010958,2]
[352340056,1739047838597,-575.81555223,0.00010958,2]
[352340058,1739047838607,-500.0,0.00010958,2]
[352340060,1739047838616,-500.0,0.00010958,2]
[352340062,1739047838626,-502.02405485,0.00010958,2]
[352340064,1739047838635,-500.0,0.00010958,2]
[352340066,1739047838646,-500.0,0.00010958,2]
[352340068,1739047838656,-500.0,0.00010958,2]
[352340070,1739047838666,-500.0,0.00010958,2]
[352340072,1739047838675,-500.0,0.00010958,2]
[352340074,1739047838684,-500.0,0.00010958,2]
[352340076,1739047838693,-792.94,0.00010958,2]
[352340078,1739047838702,-500.0,0.00010958,2]
[352340080,1739047838711,-500.0,0.00010958,2]
[352340082,1739047838720,-500.0,0.00010958,2]
[352340084,1739047838729,-500.0,0.00010958,2]
[352340086,1739047838738,-500.0,0.00010958,2]
[352340088,1739047838747,-677.44,0.00010958,2]
[352340090,1739047838756,-230.94,0.00010958,2]
[352340092,1739047838766,-500.0,0.00010958,2]
[352340093,1739047838775,-500.0,0.00010958,2]
[352340095,1739047838784,-500.0,0.00010958,2]
[352340097,1739047838794,-500.0,0.00010958,2]
[352340099,1739047838804,-500.0,0.00010958,2]
[352340101,1739047838813,-500.0,0.00010958,2]
[352340104,1739047838823,-500.0,0.00010958,2]
[352340106,1739047838832,-500.0,0.00010958,2]
[352340107,1739047838841,-500.0,0.00010958,2]
[352340109,1739047838850,-339.75689561,0.00010958,2]
[352340111,1739047838859,-500.0,0.00010958,2]
[352340113,1739047838869,-500.0,0.00010958,2]
[352340115,1739047838879,-506.10197369,0.00010958,2]
[352340117,1739047838890,-500.0,0.00010958,2]
[352340119,1739047838900,-500.0,0.00010958,2]
[352340121,1739047838910,-500.0,0.00010958,2]
[352340123,1739047838919,-218.19398366,0.00010958,2]
[352340125,1739047838928,-500.0,0.00010958,2]
[352340127,1739047838938,-199.20139213,0.00010958,2]
[352340129,1739047838950,-500.0,0.00010958,2]
[352340131,1739047838959,-500.0,0.00010958,2]
[352340133,1739047838968,-500.0,0.00010958,2]
[352340135,1739047838978,-500.0,0.00010958,2]
[352340137,1739047838987,-500.0,0.00010958,2]
[352340139,1739047838996,-460.27566526,0.00010958,2]
[352340181,1739047839381,-39.72433474,0.00010958,2]
[352340183,1739047839390,-500.0,0.00010958,2]
[352340185,1739047839399,-500.0,0.00010958,2]
[352340187,1739047839409,-500.0,0.00010958,2]
[352340189,1739047839418,-500.0,0.00010958,2]
[352340191,1739047839427,-500.0,0.00010958,2]
[352340193,1739047839436,-554.12405265,0.00010958,2]
[352340195,1739047839446,-500.0,0.00010958,2]
[352340197,1739047839455,-652.96,0.00010958,2]
[352340199,1739047839464,-500.0,0.00010958,2]
[352340201,1739047839473,-500.0,0.00010958,2]
[352340203,1739047839483,-500.0,0.00010958,2]
[352340205,1739047839492,-500.0,0.00010958,2]
[352340206,1739047839501,-500.0,0.00010958,2]
[352340207,1739047839510,-500.0,0.00010958,2]
[352340208,1739047839519,-500.0,0.00010958,2]
[352340209,1739047839529,-500.0,0.00010958,2]
[352340210,1739047839538,-500.0,0.00010958,2]
[352340211,1739047839547,-500.0,0.00010958,2]
[352340212,1739047839556,-500.0,0.00010958,2]